Cogmind - Beta 14 @@@ ROGUE MODE // 2024.11.24 @ 19:15:00 Player: Cracklepappy Result: Destroyed by D-53 Grenadier with Mini Grenade Launcher Performance ------------- Evolutions (0) 0 Regions Visited (2) 400 Robots Destroyed (40) 200 Value Destroyed (722) 722 Prototype IDs (2) 40 Alien Tech Used (0) 0 Bonus (0) 0 TOTAL SCORE: 1362 Bonus ------- None Cogmind --------- Core Integrity 0/250 Matter 284/300 Energy 250/250 System Corruption 1% Temperature Cool (9) Movement Rolling (215) Ox9 Location -10/Mines Parts ------- > --- POWER (1) -------- Ion Engine > --- PROPULSION (2) --- Aluminum Leg Wheel > --- UTILITY (2) ------ Huge Storage Unit > --- WEAPON (2) ------- Light Cannon Light Cannon > --- INVENTORY (25) --- Ion Engine Aluminum Leg Aluminum Leg Aluminum Leg Flight Unit Flight Unit Heat Sink Heat Sink Heat Sink Large Storage Unit Machine Analyzer Seismic Detector Core Shielding Hacking Suite Tractor Beam Beam Cannon Beam Cannon Beam Cannon Beam Cannon Light Assault Rifle Light Assault Rifle Light Cannon Datajack Mining Laser Plasma Cutter Peak State ------------ > --- POWER ------------ Ion Engine > --- PROPULSION ------- Light Treads Aluminum Leg > --- UTILITY ---------- Huge Storage Unit Core Shielding > --- WEAPON ----------- Light Assault Rifle Light Assault Rifle > --- INVENTORY -------- Ion Engine Ion Engine Light Ion Engine Aluminum Leg Aluminum Leg Aluminum Leg Wheel Flight Unit Flight Unit Flight Unit Flight Unit Heat Sink Heat Sink Heat Sink Small Storage Unit Large Storage Unit Machine Analyzer Seismic Detector Core Shielding Hacking Suite Tractor Beam Beam Cannon Light Assault Rifle Mining Laser Plasma Cutter [Rating: 10] Favorites ----------- Power Ion Engine Engine Ion Engine Propulsion Light Treads Treads Light Treads Leg Aluminum Leg Wheel Wheel Utility Core Shielding Device Seismic Detector Storage Huge Storage Unit Protection Core Shielding Weapon Light Assault Rifle Ballistic Gun Light Assault Rifle Ballistic Cannon Light Cannon Build | -11 -10 -10 ------- Run | Yrd Mat Min Slots Evolved . | . . . Power . | . . . Propulsion . | . . . Utility . | . . . Weapon . | . . . Parts Attached 22 | 8 13 1 Power 4 | 1 3 . Engine 4 | 1 3 . Core . | . . . Reactor . | . . . Propulsion 6 | 2 3 1 Treads 3 | 2 1 . Leg 2 | . 2 . Wheel 1 | . . 1 Hover . | . . . Flight . | . . . Utility 7 | 3 4 . Device 2 | 2 . . Storage 4 | 1 3 . Processor . | . . . Hackware . | . . . Protection 1 | . 1 . Artifact . | . . . Weapon 5 | 2 3 . Energy Gun . | . . . Energy Cannon . | . . . Ballistic Gun 3 | 2 1 . Ballistic Cannon 2 | . 2 . Launcher . | . . . Special Weapon . | . . . Impact Weapon . | . . . Slashing Weapon . | . . . Piercing Weapon . | . . . Special Melee Weapon . | . . . Unidentified Prototypes . | . . . Parts Lost 4 | . 3 1 Power 1 | . 1 . Propulsion 1 | . 1 . Utility 1 | . . 1 Weapon 1 | . 1 . Highest Loss Streak 2 | . 2 1 To Critical Strikes 1 | . 1 . Average Slot Usage (%) 99 | . 99 100 Engine 14 | . 14 14 Treads 13 | . 14 . Leg 13 | . 13 17 Storage 14 | . 14 14 Protection 13 | . 13 14 Ballistic Gun 19 | . 20 . Ballistic Cannon 8 | . 7 28 Peak Build Rating 10 | 9 10 10 Average Rating 9 | 7 9 10 On Entrance 6 | . 8 10 Naked Turns . | . . . Heaviest Build 92 | 12 92 92 Greatest Support 40 | 40 40 20 Greatest Overweight (x) 9 | . 8 9 Average Overweight (x) 2 | . 2 8 Largest Inventory Capacity 25 | 8 25 25 Average Capacity 21 | 7 22 25 Most Carried 25 | 8 25 25 Average Carried 20 | 4 20 25 Final Capacity 25 | 8 25 25 Final Carried 25 | 8 25 25 Class Distribution -------------------- 100% | Mutant Dominant Class ---------------- Mutant | -10/Materials Mutant | -10/Mines Resources | -11 -10 -10 ----------- Run | Yrd Mat Min Matter Collected 907 | 328 579 . Remotely . | . . . Salvage Created 1240 | 144 1096 . Parts 86 | 14 72 . Haulers Intercepted 2 | . 2 . Recyclers Shooed 2 | . 2 . Parts Field Recycled . | . . . Retrieved Matter . | . . . Parts Self-Destructed . | . . . Prevented . | . . . Kills | -11 -10 -10 ------- Run | Yrd Mat Min Combat Hostiles Destroyed 25 | . 25 . Guns 21 | . 21 . Cannons 4 | . 4 . Classes Destroyed 9 | 2 7 . Worker 2 | . 2 . Tunneler 4 | 4 . . Hauler 2 | . 2 . Recycler 3 | 1 2 . Mechanic 1 | . 1 . Operator 1 | . 1 . Watcher 2 | . 2 . Swarmer 11 | . 11 . Grunt 14 | . 14 . Best Kill Streak 4 | 2 4 . Combat Bots Only 3 | . 3 . Max Kills in Single Turn 1 | 1 1 . Gunslinging . | . . . Exploded . | . . . Melee . | . . . Uniques/NPCs Destroyed . | . . . Combat | -11 -10 -10 -------- Run | Yrd Mat Min Hostile Shots Fired 143 | . 141 2 Missed 37 | . 37 . Damage Taken 1088 | . 1021 67 Core 267 | . 230 37 Absorbed by Shields . | . . . Redirected to Shielding 52 | . 43 9 Core Remaining (%) 100 | 100 . . Volleys Fired 126 | 12 113 1 Largest 2 | 2 2 2 Hottest 70 | 40 70 70 Shots Fired 252 | 24 226 2 Gun 213 | 24 189 . Cannon 39 | . 37 2 Launcher . | . . . Special . | . . . Kinetic 252 | 24 226 2 Thermal . | . . . Explosive . | . . . Electromagnetic . | . . . Robot Hit Streak 19 | 4 19 . Robot Miss Streak 6 | 5 6 2 Penetration Max . | . . . Secondary Targets 1 | . 1 . Max Gunslinging Chain 1 | . 1 . Shots Hit Robots 148 | 11 137 . Core Hits 67 | 6 61 . Critical Kills 1 | . 1 . Critical Parts Destroyed . | . . . Critical Strikes 1 | . 1 . Destroy 1 | . 1 . Melee Attacks . | . . . Impact . | . . . Slashing . | . . . Piercing . | . . . Sneak Attacks . | . . . Combat Hostiles . | . . . Follow-up Attacks . | . . . Damage Inflicted 1635 | 122 1513 . Guns 1304 | 122 1182 . Cannons 331 | . 331 . Explosions . | . . . Melee . | . . . Ramming . | . . . Kinetic 1635 | 122 1513 . Thermal . | . . . Explosive . | . . . Electromagnetic . | . . . Impact . | . . . Slashing . | . . . Piercing . | . . . Highest Corruption 1 | . 1 1 Average Corruption 1 | . 1 1 Corruption Purged . | . . . Corruption Blocked . | . . . Effects 5 | . 5 . Matter Fused 1 | . 1 . Heat Flow Errors 1 | . 1 . Data Loss (minor) 1 | . 1 . Data Loss (major) 1 | . 1 . Misfires 1 | . 1 . Overload Shots . | . . . Overflow Damage 9 | . 9 . Projectiles 9 | . 9 . Explosions . | . . . Melee . | . . . Knockbacks 6 | . 6 . Impact . | . . . Kinetic 6 | . 6 . Secondary . | . . . Self-Inflicted Damage . | . . . Shots . | . . . Rammed . | . . . Targets Rammed . | . . . Kicked . | . . . Crushed . | . . . Highest Temperature 148 | . 148 9 Average Temperature 21 | . 21 6 Received Heat Transfer 345 | . 345 . Siege Activations . | . . . Robots Corrupted . | . . . Combat Hostiles . | . . . Parts Fried . | . . . Impact Corruptions . | . . . Robots Melted . | . . . Combat Hostiles . | . . . Parts Melted . | . . . Heat Transferred . | . . . Parts Sabotaged . | . . . Parts Stolen . | . . . Parts Stripped . | . . . Power Chain Reactions . | . . . Alert | -11 -10 -10 ------- Run | Yrd Mat Min Peak Influence 363 | 25 363 131 Initial 131 | . 16 131 Average 172 | 13 181 131 Maximum Alert Level 1 | . 1 . Low Security (%) 62 | 100 60 100 Level 1 37 | . 39 . Level 2 . | . . . Level 3 . | . . . Level 4 . | . . . Level 5 . | . . . High Security . | . . . Max Security . | . . . Squads Dispatched 4 | . 4 . Investigation 3 | . 3 . Extermination . | . . . Reinforcement 1 | . 1 . Assault . | . . . Garrison . | . . . Intercept . | . . . Searches Triggered . | . . . Construction Impeded . | . . . Haulers Reinforced . | . . . Active Scanning Responses . | . . . Cargo Convoy Interrupts . | . . . Stealth | -11 -10 -10 --------- Run | Yrd Mat Min Distress Signals 1 | . 1 . Communications Jammed . | . . . Distress Signals . | . . . Times Spotted 49 | . 48 1 Peak Tracking Total 4 | . 4 1 Tactical Retreats 5 | . 5 . Traps | -11 -10 -10 ------- Run | Yrd Mat Min Traps Triggered 3 | . 3 . Indirectly . | . . . Trap Hack Attempts . | . . . Triggered . | . . . Disarmed . | . . . Reprogrammed . | . . . Reused . | . . . Traps Extracted . | . . . Installed . | . . . Triggered . | . . . Machines | -11 -10 -10 ---------- Run | Yrd Mat Min Machines Disabled 1 | . 1 . Max in Single Turn 1 | . 1 . Machines Repaired . | . . . Machines Dismantled . | . . . Machines Sabotaged . | . . . Overloaded Fab Kills . | . . . Hacking | -11 -10 -10 --------- Run | Yrd Mat Min Machines Accessed 9 | . 9 . Terminals 7 | . 7 . Fabricators . | . . . Repair Stations . | . . . Recycling Units 2 | . 2 . Scanalyzers . | . . . Garrison Access . | . . . Total Hacks 18 | . 18 . Successful 9 | . 9 . Failed 8 | . 8 . Catastrophic 4 | . 4 . Database Lockouts 1 | . 1 . Manual 5 | . 5 . Terminals 15 | . 15 . Fabricators . | . . . Repair Stations . | . . . Recycling Units 3 | . 3 . Scanalyzers . | . . . Garrison Access . | . . . Terminal Hacks 6 | . 6 . Part Schematic 1 | . 1 . Prototype ID Bank 1 | . 1 . Hauler Manifests 1 | . 1 . Registered Components 1 | . 1 . Registered Prototypes 1 | . 1 . Zone Layout 1 | . 1 . Fabricator Hacks . | . . . Repair Station Hacks . | . . . Recycling Unit Hacks 1 | . 1 . Retrieve Components 1 | . 1 . Scanalyzer . | . . . Garrison Access Hacks . | . . . Unauthorized Hacks 2 | . 2 . Terminals . | . . . Fabricators . | . . . Repair Stations . | . . . Recycling Units 2 | . 2 . Tunnel 2 | . 2 . Scanalyzers . | . . . Garrison Access . | . . . Data Cores Recovered . | . . . Used . | . . . Hacking Detections 8 | . 8 . Full Trace Events . | . . . Feedback Events . | . . . Feedback Blocked . | . . . Robot Schematics Acquired . | . . . Robots Built . | . . . Authchips . | . . . Time . | . . . Total Robot Build Rating . | . . . Part Schematics Acquired 1 | . 1 . Parts Built . | . . . Authchips . | . . . Time . | . . . Total Part Build Rating . | . . . Parts Repaired . | . . . Time . | . . . Parts Recycled . | . . . Recycled Matter . | . . . Retrieved Matter . | . . . Retrieved Components 1 | . 1 . Parts Scanalyzed . | . . . Part Schematics Acquired . | . . . Parts Damaged . | . . . Bothacking | -11 -10 -10 ------------ Run | Yrd Mat Min Used RIF Installer . | . . . Robots Hacked . | . . . Non-combat . | . . . Combat . | . . . Robot Hacks Applied . | . . . Relay Couplers Released . | . . . Fabnet Peak Effective % . | . . . Robots Rewired . | . . . Allies Hacked . | . . . Hacks Repelled . | . . . Allies | -11 -10 -10 -------- Run | Yrd Mat Min Total Allies . | . . . Largest Group . | . . . Highest-Rated Group . | . . . Highest-Rated Ally . | . . . Total Orders . | . . . Ally Attacks . | . . . Total Damage . | . . . Kills . | . . . Allies Corrupted . | . . . Allies Melted . | . . . Intel | -11 -10 -10 ------- Run | Yrd Mat Min Robot Analysis Total . | . . . Derelict Logs Recovered . | . . . Drone Launches . | . . . Drone Recoveries . | . . . Exploration | -11 -10 -10 ------------- Run | Yrd Mat Min Turns Passed 3802 | 181 3542 79 Spaces Moved 1130 | 84 1015 31 Core 5 | 5 . . Treads 691 | 79 612 . Legs 407 | . 403 4 Wheels 27 | . . 27 Hover . | . . . Flight . | . . . Fastest Speed 50 | 50 160 215 Average Speed 295 | 153 309 238 Slowest Speed 680 | 160 680 400 Overloaded Moves . | . . . Propulsion Burnouts . | . . . Robots Hopped . | . . . Cave-ins Triggered . | . . . Exploration Rate (%) 39 | 4 98 15 Regions Visited 2 Branch Regions 1 Pre-discovered Areas 2 | . 2 . Known Exits Taken . | . . . Unknown Exits Taken 2 | 1 1 . Scrap Searched . | . . . Spaces Dug . | . . . Terrain Destroyed . | . . . Melee . | . . . Projectile . | . . . AOE . | . . . Terrain Rammed . | . . . Walls Destroyed . | . . . Machines Disabled . | . . . Actions | -11 -10 -10 --------- Run | Yrd Mat Min Total 1377 | 111 1233 33 Wait 36 | . 36 . Move 1128 | 83 1014 31 Hop . | . . . Pick Up 44 | 8 36 . Fast Attach 10 | 7 3 . Attach 3 | . 3 . Detach . | . . . Swap 9 | 1 7 1 Drop 21 | . 21 . Fire 126 | 12 113 1 Melee . | . . . Ram . | . . . Kick . | . . . Crush . | . . . Escape Stasis . | . . . Rewire . | . . . Trap . | . . . Miscellaneous . | . . . Route ------- -11/Scrapyard -10/Materials (discovered 4 exits: [*Mat x3] / [*Min]) -10/Mines History --------- Turn | Location | Event 12 | -11/Scrapyard | Discovered new exit (range 16) 182 | -11/Scrapyard | Entered Materials 250 | -10/Materials | Central database locked down 316 | -10/Materials | Build established: Mutant 581 | -10/Materials | Discovered new exit (range 5) 1006 | -10/Materials | Discovered new exit (range 5) 1069 | -10/Materials | Discovered new exit (range 7) 1473 | -10/Materials | Discovered new exit (range 10) 1938 | -10/Materials | Core integrity fell below 50% 2831 | -10/Materials | Core integrity fell below 20% 3724 | -10/Materials | Entered Mines 3727 | -10/Mines | Met a Derelict bent on vengeance 3733 | -10/Mines | Assembled infested the area 3738 | -10/Mines | Assisted by a Guerilla fighting off Assembled 3803 | -10/Mines | Destroyed by D-53 Grenadier with Mini Grenade Launcher Last Messages --------------- 03341_ G-34 Mercenary destroyed. 03342_ R-06 Scavenger collects Com. Wheel. 03348_ R-06 Scavenger collects Hover Unit. 03352_ R-06 Scavenger collects Signal Interpreter. 03356_ Acquired 2 matter. 03364_ Acquired 11 matter. 03374_ K-01 Serf collects debris. 03623_ System corrupted: FCS attempts to trigger Lgt. Cannon. 03623_ System corrupted: Lgt. Cannon misfires. 03665_ System corrupted: Heat flow error (+168). 03678_ K-01 Serf cleans the Terminal. 03680_ Acquired 36 matter. LOCATION=UNKNOWN GOAL=ESCAPE 03733_ ALERT: Infestation in the mines, dispatching Demolisher response squad. 03738_ A derelict emerges from the shadows: "You need to get out of here! I've been tracking a group of Assembled to figure out where they're coming from, and they're closing on this area, come on!" 03803_ Core Shielding destroyed. Map ----- +----------------------------------------------------+ | ?????????????????????????????????????????????????? | | ?????????????????????????????????????????????????? | | ?????????????????????????????????????????????????? | | ?????????????????????????????????????????????????? | | ?????????????????????????????????????????????????? | | ?????????????????????????????????????????????????? | | ?????????????????????????????????????????????????? | | ?????????????????????????????????????????????????? | | ????????????????????????????????????????#????????? | | ??????????????????????????????????????? #????#???? | | ??????????????????????????????????????? #### ##?? | | ????????????????????????????????????### #?? | | ??????????????????????????????????## ##? | | ??????????????????????????????????# ?? | | ??????????????????????????????????# ??? | | ?????????????????????????????????## """ ???? | | ?????????????????????????######### """ #?????? | | ?????????????????????????# """ #??????? | | ?????????????????????????# ###### #??????? | | ?????????????????????????# #????## #??????? | | ?????????????????????????# #?????### # #?????? | | ?????????????????????????# ##??????# #?? #????? | | ???????????????????????### ##?????# #???? #????? | | ??????????????????#????# # #?????# #??????????? | | ?????????????????## ??# #?????# ##?????????? | | ????????????????## # @ #????## ##????????? | | ????????????????# #???## #????????? | | ?????????# r #??## #????????? | | ????????????#### r d ##??# ##????????? | | ???????????????## ####???# ###?????????? | | ????????????????## ### #??????# ##???????????? | | ?????????????????##???# ?????? ###????????????? | | ??????????????????????# ???? #???????????????? | | ??????????????????????##??# #????????????????? | | ??????????????????????????# #?????????????????? | | ??????????????????????????# ??????????????????? | | ??????????????????????????# ???????????????????? | | ?????????????????????????? ???????????????????? | | ?????????????????????????? =????????????????????? | | ?????????????????????????????????????????????????? | | ?????????????????????????????????????????????????? | | ?????????????????????????????????????????????????? | | ?????????????????????????????????????????????????? | | ?????????????????????????????????????????????????? | | ?????????????????????????????????????????????????? | | ?????????????????????????????????????????????????? | | ?????????????????????????????????????????????????? | | ?????????????????????????????????????????????????? | | ?????????????????????????????????????????????????? | | ?????????????????????????????????????????????????? | +----------------------------------------------------+ Best States ------------- Heat Dissipation 25 Energy Generation 10 Energy Capacity 250 Matter Stores 300 Matter Capacity 300 Sight Range 16 Terrain Scan Range 16 Terrain Scan Density 10 Core Shielding 20 Evasion (%) 40 Recoil Reduction 2 Item Schematics ----------------- Cargo Storage Unit | -10/Materials | Hacked Robot Schematics ------------------ None Fabricated ------------ Nothing Alien Tech Used ----------------- None Achievements -------------- None Challenges ------------ None Game ------ Seed MyomerInsulatedJammer Manual? 0 Play Time 00:13:35 Cumulative 660.2 hours Start 2024.11.23 @ 20:33:17 End 2024.11.24 @ 19:15:00 Sessions 2 Manual Loads 0 Difficulty Rogue Special Mode None Game No. 424 Rogue 424 Adventurer 0 Explorer 0 Win Type - Total 20 Types 9/3/2/0/1/1/2/2/0 Lore% 54 Gallery% 86 Achievement% 81 Wizard Run 0 Options --------- Layout 0 ASCII 0 Keyboard 0 Movement Numpad Keybinds 0 Fullscreen 2 Font 24/Smallcaps Map View 76x50 Zoom Use 0% Tactical HUD 1 Map Filters NONE Filters NONE Steam 1 RUN: 52727d8c-074d-4d86-8504-2864f638a8eb